fUST/lending_fUST_20250811
["ID","MTS","AMOUNT","RATE_DAILY","PERIOD"]
[378594656,1754920264610,-282.19,0.00019452,2]
[378594657,1754920264620,-114.64034321,0.0002,2]
[378594658,1754920264629,-793.03,0.0002,2]
[378594659,1754920264640,-460.0,0.0002,2]
[378594660,1754920264649,-460.0,0.0002,2]
[378594661,1754920264659,-460.0,0.0002,2]
[378594662,1754920264669,-467.62511193,0.0002,2]
[378594663,1754920264681,-904.75,0.0002,2]
[378594664,1754920264691,-1095.03,0.0002,2]
[378594665,1754920264700,-460.0,0.0002,2]
[378594666,1754920264709,-2107.18,0.0002,2]
[378594667,1754920264718,-460.0,0.0002,2]
[378594668,1754920264728,-460.0,0.0002,2]
[378594669,1754920264738,-460.0,0.0002,2]
[378594670,1754920264747,-460.0,0.0002,2]
[378594671,1754920264756,-509.76759766,0.0002,2]
[378594672,1754920264765,-168.0,0.00020055,2]
[378594673,1754920264775,-157.0,0.00020137,3]
[378594674,1754920264784,-500.0,0.00020147,2]
[378594675,1754920264793,-440.0,0.00020171,2]
[378594676,1754920264803,-734.104657,0.00020187,2]
[378594677,1754920264812,-151.0,0.000202,4]
[378594678,1754920264821,-168.0,0.00020264,2]
[378594679,1754920264831,-151.0,0.00020268,2]
[378594680,1754920264841,-151.0,0.00020268,2]
[378594681,1754920264850,-1500.0,0.00020268,2]
[378594682,1754920264859,-1500.0,0.00020268,2]
[378594683,1754920264869,-1500.0,0.00020268,2]
[378594684,1754920264879,-590.88581099,0.00020268,2]
[378594685,1754920264888,-1500.0,0.00020268,2]
[378594686,1754920264898,-1500.0,0.00020268,2]
[378594687,1754920264907,-1500.0,0.00020268,2]
[378594688,1754920264917,-515.7482093,0.00020268,2]
[378594689,1754920264926,-1500.0,0.00020268,2]
[378594690,1754920264939,-1500.0,0.00020268,2]
[378594691,1754920264949,-505.53108855,0.00020268,2]
[378594692,1754920264958,-1500.0,0.00020268,2]
[378594693,1754920264968,-1500.0,0.00020268,2]
[378594694,1754920264979,-1500.0,0.00020268,2]
[378594695,1754920264998,-604.79668136,0.00020268,2]
[378594696,1754920265021,-344.75789992,0.00020268,2]
[378594697,1754920265045,-270.1,0.00020268,2]
[378594698,1754920265057,-280.34541872,0.00020268,2]
[378594699,1754920265066,-1500.0,0.00020268,2]
[378594700,1754920265075,-351.45458128,0.00020268,2]
[378594701,1754920265107,1298.167564,0.0001827,2]
[378594716,1754920333797,45000.0,0.00018668,2]
[378594720,1754920357267,1384.40754106,0.00018622,2]
[378594721,1754920357655,500.0,0.00018667,2]
[378594722,1754920357689,626.94,0.00018667,2]
[378594723,1754920357724,500.0,0.00018667,2]
[378594724,1754920357760,500.0,0.00018667,2]
[378594725,1754920358023,500.0,0.00018667,2]
[378594726,1754920358056,500.0,0.00018667,2]
[378594727,1754920358087,500.0,0.00018667,2]
[378594728,1754920358124,332.8782852,0.00018667,2]
[378594729,1754920358156,355.32158017,0.00018667,2]
[378594730,1754920358203,500.0,0.00018667,2]
[378594731,1754920358251,500.0,0.00018667,2]
[378594732,1754920358295,500.0,0.00018667,2]
[378594733,1754920358328,500.0,0.00018667,2]
[378594734,1754920358360,500.0,0.00018667,2]
[378594735,1754920358400,166.22770152,0.00018667,2]
[378594736,1754920358433,500.0,0.00018667,2]
[378594737,1754920358464,500.0,0.00018667,2]
[378594738,1754920358496,500.0,0.00018667,2]
[378594739,1754920358534,500.0,0.00018667,2]
[378594740,1754920358573,500.0,0.00018667,2]
[378594741,1754920358616,500.0,0.00018667,2]
[378594742,1754920358655,500.0,0.00018667,2]
[378594743,1754920358690,500.0,0.00018667,2]
[378594744,1754920358727,500.0,0.00018667,2]
[378594745,1754920358776,500.0,0.00018667,2]
[378594746,1754920358809,500.0,0.00018667,2]
[378594747,1754920358842,500.0,0.00018667,2]
[378594748,1754920358877,500.0,0.00018667,2]
[378594749,1754920358911,594.55664869,0.00018667,2]
[378594750,1754920358947,500.0,0.00018667,2]
[378594751,1754920358980,500.0,0.00018667,2]
[378594752,1754920359015,500.0,0.00018667,2]
[378594753,1754920359049,500.0,0.00018667,2]
[378594754,1754920359088,500.0,0.00018667,2]
[378594755,1754920359144,585.36907497,0.00018667,2]
[378594756,1754920359190,500.0,0.00018667,2]
[378594757,1754920359231,500.0,0.00018667,2]
[378594758,1754920359271,500.0,0.00018667,2]
[378594759,1754920359308,500.0,0.00018667,2]
[378594760,1754920359341,500.0,0.00018667,2]
[378594761,1754920359376,500.0,0.00018667,2]
[378594762,1754920359415,500.0,0.00018667,2]
[378594763,1754920359457,500.0,0.00018667,2]
[378594764,1754920359503,500.0,0.00018667,2]
[378594765,1754920359548,500.0,0.00018667,2]
[378594766,1754920359592,197.71121271,0.00018667,2]
[378594767,1754920359637,500.0,0.00018667,2]
[378594768,1754920362563,-250182.0,0.00018668,2]
[378594774,1754920382818,300.0,0.00018667,2]
[378594778,1754920395866,-234.07192821,0.00018668,2]
[378594780,1754920397479,-311.4270703,0.00018668,2]
[378594781,1754920398987,-268.44734542,0.00018668,2]
[378594784,1754920410456,-154.90224994,0.00018668,2]
[378594790,1754920444989,300.0,0.00018667,2]
[378594792,1754920459081,152.3548301,0.00018668,2]
[378594799,1754920471451,5000.0,0.00018668,2]
[378594801,1754920488469,5000.0,0.00018668,2]
[378594811,1754920502799,300.0,0.00018667,2]
[378594812,1754920502992,300.0,0.00018667,2]
[378594813,1754920503226,300.0,0.00018667,2]
[378594814,1754920504085,300.0,0.00018667,2]
[378594815,1754920505429,28056.5955379,0.00018171,2]
[378594816,1754920507923,5000.0,0.00018668,2]
[378594817,1754920509191,1200.0,0.00018667,2]
[378594819,1754920527490,5000.0,0.00018668,2]
[378594823,1754920536497,3883.7399744,0.00018006,2]
[378594825,1754920546809,5000.0,0.00018668,2]
[378594834,1754920563578,300.0,0.00018667,2]
[378594835,1754920564211,5000.0,0.00018668,2]
[378594839,1754920580771,5000.0,0.00018668,2]
[378594840,1754920581910,1211.35659841,0.00018622,2]
[378594841,1754920590347,-166.9356753,0.00018668,2]
[378594842,1754920600261,5000.0,0.00018668,2]
[378594844,1754920605577,1200.0,0.00018667,2]
[378594847,1754920616440,5000.0,0.00018668,2]
[378594849,1754920623446,300.0,0.00018667,2]
[378594851,1754920634136,5000.0,0.00018668,2]
[378594852,1754920636206,-50000.0,0.00018668,2]
[378594853,1754920639621,168.82544,0.0001819,2]
[378594854,1754920639873,168.82544,0.0001819,120]
[378594855,1754920640042,-23682.21573083,0.00018668,2]
[378594856,1754920640065,-244.9291761,0.00018722,2]
[378594857,1754920640086,-160.0,0.00018767,2]
[378594858,1754920640108,-796.51961863,0.000189,2]
[378594859,1754920640131,-3282.0,0.00018925,2]
[378594860,1754920640156,-200.0,0.00019041,15]
[378594861,1754920640181,-200.0,0.00019041,15]
[378594862,1754920640206,-200.0,0.00019041,15]
[378594863,1754920640232,-200.0,0.00019041,15]
[378594864,1754920640254,-477.95106194,0.00019078,2]
[378594865,1754920640279,-500.0,0.00019165,2]
[378594866,1754920640302,-509.48545277,0.00019165,2]
[378594867,1754920640326,-500.0,0.00019165,2]
[378594868,1754920640350,-633.07902364,0.00019165,2]
[378594869,1754920640373,-288.55308071,0.00019165,2]
[378594870,1754920640395,-18125.26685538,0.00019165,2]
[378594871,1754920642692,-531.01307909,0.000189,2]
[378594872,1754920642715,-31874.73314462,0.00019165,2]
[378594873,1754920642740,-730.27,0.00019168,3]
[378594874,1754920642767,-365.13,0.00019168,3]
[378594875,1754920642790,-182.57,0.00019168,3]
[378594876,1754920642814,-500.0,0.00019173,2]
[378594877,1754920642836,-500.0,0.00019173,2]
[378594878,1754920642859,-500.0,0.00019173,2]
[378594879,1754920642883,-500.0,0.00019173,2]
[378594880,1754920642909,-500.0,0.00019173,2]
[378594881,1754920642933,-251.16063819,0.00019173,2]
[378594882,1754920642957,-500.0,0.00019173,2]
[378594883,1754920642981,-500.0,0.00019173,2]
[378594884,1754920643007,-333.11519119,0.00019173,2]
[378594885,1754920643029,-500.0,0.00019173,2]
[378594886,1754920643051,-500.0,0.00019173,2]
[378594887,1754920643073,-512.61477236,0.00019173,2]
[378594888,1754920643095,-500.0,0.00019173,2]
[378594889,1754920643123,-500.0,0.00019173,2]
[378594890,1754920643145,-500.0,0.00019173,2]
[378594891,1754920643168,-460.0,0.00019178,2]
[378594892,1754920643191,-460.0,0.00019178,2]
[378594893,1754920643213,-460.0,0.00019178,2]
[378594894,1754920643236,-212.43730442,0.00019178,2]
[378594895,1754920643261,-460.0,0.00019178,2]
[378594896,1754920643284,-460.0,0.00019178,2]
[378594897,1754920643306,-460.0,0.00019178,2]
[378594898,1754920643329,-460.0,0.00019178,2]
[378594899,1754920643351,-608.91,0.00019178,2]
[378594900,1754920643379,-460.0,0.00019178,2]
[378594901,1754920643402,-460.0,0.00019178,2]
[378594902,1754920643425,-710.23,0.00019178,2]
[378594903,1754920643449,-568.75,0.00019178,2]
[378594904,1754920643471,-460.0,0.00019178,2]
[378594905,1754920643496,-460.0,0.00019178,2]
[378594906,1754920643519,-1206.49,0.00019178,2]
[378594907,1754920643543,-852.57587013,0.00019178,2]
[378594908,1754920645625,-1790.51412987,0.00019178,2]
[378594909,1754920645648,-460.0,0.00019178,2]
[378594910,1754920645673,-460.0,0.00019178,2]
[378594911,1754920645697,-460.0,0.00019178,2]
[378594912,1754920645721,-581.82,0.00019178,2]
[378594913,1754920645748,-460.0,0.00019178,2]
[378594914,1754920645775,-460.0,0.00019178,2]
[378594915,1754920645799,-353.97890727,0.00019178,2]
[378594916,1754920645823,-460.0,0.00019178,2]
[378594917,1754920645846,-473.74,0.00019178,2]
[378594918,1754920645870,-178.96708676,0.00019178,2]
[378594919,1754920646088,-460.0,0.00019178,2]
[378594920,1754920646114,-460.0,0.00019178,2]
[378594921,1754920646137,-460.0,0.00019178,2]
[378594922,1754920646160,-460.0,0.00019178,2]
[378594923,1754920646183,-460.0,0.00019178,2]
[378594924,1754920646205,-460.0,0.00019178,2]
[378594925,1754920646228,-460.0,0.00019178,2]
[378594926,1754920646250,-258.51550612,0.00019178,2]
[378594927,1754920646272,-460.0,0.00019178,2]
[378594928,1754920646295,-460.0,0.00019178,2]
[378594929,1754920646317,-638.05,0.00019178,2]
[378594930,1754920646339,-460.0,0.00019178,2]
[378594931,1754920646361,-460.0,0.00019178,2]
[378594932,1754920646384,-460.0,0.00019178,2]
[378594933,1754920646406,-460.0,0.00019178,2]
[378594934,1754920646428,-460.0,0.00019178,2]
[378594935,1754920646450,-460.0,0.00019178,2]
[378594936,1754920646472,-460.0,0.00019178,2]
[378594937,1754920646495,-460.0,0.00019178,2]
[378594938,1754920646520,-460.0,0.00019178,2]
[378594939,1754920646545,-2326.47,0.00019178,2]
[378594940,1754920646567,-460.0,0.00019178,2]
[378594941,1754920646590,-460.0,0.00019178,2]
[378594942,1754920646612,-460.0,0.00019178,2]
[378594943,1754920646636,-460.0,0.00019178,2]
[378594944,1754920646659,-460.0,0.00019178,2]
[378594945,1754920646683,-471.82039472,0.00019178,2]
[378594946,1754920646705,-460.0,0.00019178,2]
[378594947,1754920646734,-474.98,0.00019178,2]
[378594948,1754920646759,-328.20898188,0.00019178,2]
[378594949,1754920646783,-460.0,0.00019178,2]
[378594950,1754920646808,-460.0,0.00019178,2]
[378594951,1754920646832,-454.14187579,0.00019178,2]
[378594952,1754920646854,-460.0,0.00019178,2]
[378594953,1754920646878,-500.0,0.00019178,2]
[378594954,1754920646902,-500.0,0.00019178,2]
[378594955,1754920646925,-500.0,0.00019178,2]
[378594956,1754920646948,-349.46136917,0.00019178,2]
[378594957,1754920646971,-460.0,0.00019178,2]
[378594958,1754920646993,-460.0,0.00019178,2]
[378594959,1754920647017,-460.0,0.00019178,2]
[378594960,1754920647042,-460.0,0.00019178,2]
[378594961,1754920647065,-1030.19,0.00019178,2]
[378594962,1754920647089,-954.98,0.00019178,2]
[378594963,1754920647113,-460.0,0.00019178,2]
[378594964,1754920647138,-460.0,0.00019178,2]
[378594965,1754920647163,-460.0,0.00019178,2]
[378594966,1754920647188,-460.0,0.00019178,2]
[378594968,1754920647212,-722.1,0.00019178,2]
[378594969,1754920647234,-460.0,0.00019178,2]
[378594970,1754920647257,-460.0,0.00019178,2]
[378594971,1754920647279,-460.0,0.00019178,2]
[378594972,1754920647302,-699.96,0.00019178,2]
[378594973,1754920647324,-460.0,0.00019178,2]
[378594974,1754920647348,-1051.14,0.00019178,2]
[378594975,1754920647370,-460.0,0.00019178,2]
[378594976,1754920647392,-653.72,0.00019178,2]
[378594977,1754920647416,-4113.13,0.00019178,2]
[378594978,1754920647439,-460.0,0.00019178,2]
[378594979,1754920647460,-460.0,0.00019178,2]
[378594980,1754920647484,-460.0,0.00019178,2]
[378594981,1754920647508,-460.0,0.00019178,2]
[378594982,1754920647531,-460.0,0.00019178,2]
[378594983,1754920647556,-4045.41,0.00019178,2]
[378594984,1754920647579,-460.0,0.00019178,2]
[378594985,1754920647602,-460.0,0.00019178,2]
[378594986,1754920647626,-972.19,0.00019178,2]
[378594987,1754920647649,-460.0,0.00019178,2]
[378594988,1754920647673,-736.51174842,0.00019178,2]
[378594992,1754920661977,165663.89761328,0.00018568,2]
[378594993,1754920662017,41819.81796159,0.00018568,2]
[378594994,1754920662047,10000.0,0.00018568,2]
[378594995,1754920662074,10000.0,0.00018568,2]
[378594996,1754920662101,10000.0,0.00018568,2]
[378594997,1754920662127,10000.0,0.00018568,2]
[378594998,1754920662153,10000.0,0.00018568,2]
[378594999,1754920662178,6871.784962,0.00018568,2]
[378595000,1754920662203,10000.0,0.00018568,2]
[378595001,1754920662227,10000.0,0.00018568,2]
[378595002,1754920662252,10000.0,0.00018568,2]
[378595003,1754920662278,10000.0,0.00018568,2]
[378595004,1754920662303,10000.0,0.00018568,2]
[378595005,1754920662329,10000.0,0.00018568,2]
[378595006,1754920662354,10000.0,0.00018568,2]
[378595007,1754920662380,10000.0,0.00018568,2]
[378595008,1754920662417,10000.0,0.00018568,2]
[378595009,1754920662442,10000.0,0.00018568,2]
[378595010,1754920662468,5644.49946313,0.00018568,2]
[378595017,1754920719011,764.801562,0.00013699,2]
[378595039,1754920817480,174.358682,0.00018107,2]
[378595040,1754920817914,311.019204,0.00018373,2]
[378595041,1754920818720,172.301266,0.00018415,2]
[378595042,1754920818868,394.94475756,0.00018416,2]
[378595043,1754920825615,43947.37609044,0.00018568,2]
[378595044,1754920825643,94235.198438,0.00018568,2]
[378595045,1754920825673,4355.50053687,0.00018568,2]
[378595046,1754920825697,10000.0,0.00018568,2]
[378595047,1754920825721,10000.0,0.00018568,2]
[378595048,1754920825745,10000.0,0.00018568,2]
[378595049,1754920825769,10000.0,0.00018568,2]
[378595050,1754920825794,10000.0,0.00018568,2]
[378595051,1754920825818,10000.0,0.00018568,2]
[378595052,1754920825843,10000.0,0.00018568,2]
[378595053,1754920825867,10000.0,0.00018568,2]
[378595054,1754920825890,10000.0,0.00018568,2]
[378595055,1754920825917,10000.0,0.00018568,2]
[378595056,1754920825941,10000.0,0.00018568,2]
[378595057,1754920825964,10000.0,0.00018568,2]
[378595058,1754920825987,10000.0,0.00018568,2]
[378595059,1754920826010,10000.0,0.00018568,2]
[378595060,1754920826034,10000.0,0.00018568,2]
[378595061,1754920826059,10000.0,0.00018568,2]
[378595062,1754920826082,10000.0,0.00018568,2]
[378595063,1754920826105,10000.0,0.00018568,2]
[378595064,1754920826128,10000.0,0.00018568,2]
[378595065,1754920826153,10000.0,0.00018568,2]
[378595066,1754920826176,10000.0,0.00018568,2]
[378595067,1754920826199,10000.0,0.00018568,2]
[378595068,1754920826222,7461.92493469,0.00018568,2]
[378595069,1754920834887,2538.07506531,0.00018601,2]
[378595070,1754920834912,2461.92493469,0.00018601,2]
[378595072,1754920843702,4437.58813899,0.00018601,2]
[378595075,1754920845206,200.0,0.000188,120]
[378595076,1754920851600,2881.1815259,0.00018006,2]
[378595077,1754920852019,219.30540042,0.00018601,2]
[378595078,1754920852050,4780.69459958,0.00018601,2]
[378595084,1754920868697,5000.0,0.00018601,2]
[378595088,1754920885423,219.30540042,0.00018601,2]
[378595090,1754920885449,4780.69459958,0.00018601,2]
[378595091,1754920902335,5000.0,0.00018601,2]
[378595094,1754920918952,219.30540042,0.00018601,2]
[378595095,1754920918976,4780.69459958,0.00018601,2]
[378595098,1754920936302,5000.0,0.00018601,2]
[378595100,1754920947294,460.0,0.00030136,120]
[378595102,1754920952438,219.30540042,0.00018601,2]
[378595103,1754920952462,4780.69459958,0.00018601,2]
[378595105,1754920966883,5219.30540042,0.00018568,2]
[378595106,1754920966909,10000.0,0.00018568,2]
[378595107,1754920966935,10000.0,0.00018568,2]
[378595108,1754920966959,10000.0,0.00018568,2]
[378595109,1754920966983,10000.0,0.00018568,2]
[378595110,1754920967007,10000.0,0.00018568,2]
[378595111,1754920967031,10000.0,0.00018568,2]
[378595112,1754920967056,10000.0,0.00018568,2]
[378595113,1754920967080,10000.0,0.00018568,2]
[378595114,1754920967106,10000.0,0.00018568,2]
[378595115,1754920967131,10000.0,0.00018568,2]
[378595116,1754920967155,10000.0,0.00018568,2]
[378595117,1754920967181,10000.0,0.00018568,2]
[378595118,1754920967204,10000.0,0.00018568,2]
[378595119,1754920967228,10000.0,0.00018568,2]
[378595120,1754920967252,10000.0,0.00018568,2]
[378595121,1754920967276,10000.0,0.00018568,2]
[378595122,1754920967302,10000.0,0.00018568,2]
[378595123,1754920967326,10000.0,0.00018568,2]
[378595124,1754920967350,10000.0,0.00018568,2]
[378595125,1754920967374,10000.0,0.00018568,2]
[378595126,1754920967398,10000.0,0.00018568,2]
[378595127,1754920967423,10000.0,0.00018568,2]
[378595128,1754920967445,10000.0,0.00018568,2]
[378595129,1754920967468,10000.0,0.00018568,2]
[378595130,1754920967492,10000.0,0.00018568,2]
[378595131,1754920967515,10000.0,0.00018568,2]
[378595132,1754920967539,10000.0,0.00018568,2]
[378595133,1754920967562,10000.0,0.00018568,2]
[378595134,1754920967585,10000.0,0.00018568,2]
[378595135,1754920967609,10000.0,0.00018568,2]
[378595136,1754920967632,10000.0,0.00018568,2]
[378595137,1754920967655,10000.0,0.00018568,2]
[378595138,1754920967678,10000.0,0.00018568,2]
[378595139,1754920967703,10000.0,0.00018568,2]
[378595140,1754920967727,10000.0,0.00018568,2]
[378595141,1754920967750,10000.0,0.00018568,2]
[378595142,1754920967774,4780.69459958,0.00018568,2]
[378595143,1754920968808,5000.0,0.00018601,2]
[378595145,1754920985253,219.30540042,0.00018601,2]
[378595146,1754920985277,4780.69459958,0.00018601,2]
[378595148,1754920995042,5000.0,0.00018601,2]
[378595149,1754921003926,219.30540042,0.00018601,2]
[378595150,1754921003952,4780.69459958,0.00018601,2]
[378595151,1754921012059,5000.0,0.00018601,2]
[378595153,1754921022040,219.30540042,0.00018601,2]
[378595154,1754921022065,4780.69459958,0.00018601,2]
[378595156,1754921030194,531.74364107,0.00018567,2]
[378595157,1754921031664,4687.56175935,0.00018601,2]
[378595158,1754921031688,312.43824065,0.00018601,2]
[378595161,1754921040652,5000.0,0.00018601,2]
[378595165,1754921048670,900.89329063,0.00018601,2]
[378595173,1754921058686,3786.66846872,0.00018601,2]
[378595174,1754921058715,1213.33153128,0.00018601,2]
[378595181,1754921074855,5000.0,0.00018601,2]
[378595185,1754921091364,3786.66846872,0.00018601,2]
[378595186,1754921091389,1213.33153128,0.00018601,2]
[378595211,1754921107082,516.98088235,0.00018566,2]
[378595213,1754921108313,5000.0,0.00018601,2]
[378595219,1754921124747,3269.68758637,0.00018601,2]
[378595220,1754921124772,1730.31241363,0.00018601,2]
[378595226,1754921140991,5000.0,0.00018601,2]
[378595230,1754921157051,3269.68758637,0.00018601,2]
[378595231,1754921157078,1730.31241363,0.00018601,2]
[378595232,1754921157971,8269.68758637,0.00018048,2]
[378595233,1754921157997,10000.0,0.00018048,2]
[378595234,1754921158022,6630.31241363,0.00018048,2]
[378595237,1754921173936,3369.68758637,0.00018601,2]
[378595238,1754921173964,1630.31241363,0.00018601,2]
[378595239,1754921181559,274.9203054,0.00018209,2]
[378595240,1754921189742,5000.0,0.00018601,2]
[378595249,1754921206646,3094.76728097,0.00018601,2]
[378595250,1754921206672,1905.23271903,0.00018601,2]
[378595251,1754921210183,8094.76728097,0.00016,2]
[378595252,1754921210206,10000.0,0.00016,2]
[378595253,1754921210230,1929.67491306,0.00016,2]
[378595258,1754921222808,5000.0,0.00018601,2]
[378595263,1754921239134,3070.32508694,0.00018601,2]
[378595264,1754921239162,1929.67491306,0.00018601,2]
[378595265,1754921255881,5000.0,0.00018601,2]
[378595267,1754921266416,212.5051979,0.00017961,2]
[378595269,1754921274498,2857.81988904,0.00018601,2]
[378595270,1754921274526,2142.18011096,0.00018601,2]
[378595275,1754921291849,5000.0,0.00018601,2]
[378595282,1754921308712,2857.81988904,0.00018601,2]
[378595283,1754921308948,2142.18011096,0.00018601,2]
[378595286,1754921321045,7087.9115971,0.00017961,2]
[378595288,1754921326540,769.90829194,0.00018601,2]
[378595289,1754921326564,4230.09170806,0.00018601,2]
[378595292,1754921343779,5000.0,0.00018601,2]
[378595297,1754921360690,769.90829194,0.00018601,2]
[378595298,1754921360722,4230.09170806,0.00018601,2]
[378595301,1754921376827,5000.0,0.00018601,2]
[378595302,1754921395051,769.90829194,0.00018601,2]
[378595303,1754921395078,4230.09170806,0.00018601,2]
[378595307,1754921410303,5000.0,0.00018601,2]
[378595314,1754921426989,769.90829194,0.00018601,2]
[378595315,1754921427018,4230.09170806,0.00018601,2]
[378595336,1754921432308,-214.61512769,0.00018676,2]
[378595338,1754921432317,-214.61512767,0.00018676,2]
[378595340,1754921432326,-214.61512767,0.00018677,2]
[378595342,1754921432336,-136.58461697,0.00018677,2]
[378595345,1754921432353,-78.0305107,0.00018677,2]
[378595347,1754921432362,-214.61512767,0.00018677,2]
[378595349,1754921432371,-145.92396351,0.00018775,2]
[378595351,1754921432383,-1054.07603649,0.00018775,2]
[378595353,1754921432392,-1200.0,0.00018776,2]
[378595355,1754921432401,-271.80648357,0.00018776,2]
[378595357,1754921432411,-300.0,0.00018776,2]
[378595359,1754921432421,-300.0,0.00018776,2]
[378595362,1754921432431,-300.0,0.00018776,2]
[378595364,1754921432440,-50000.0,0.00018777,2]
[378595365,1754921432449,-1000.0,0.00018777,2]
[378595367,1754921432458,-1000.0,0.00018777,2]
[378595369,1754921432468,-1000.0,0.00018777,2]
[378595371,1754921432477,-1000.0,0.00018777,2]
[378595373,1754921432486,-1000.0,0.00018777,2]
[378595375,1754921432495,-162.35253676,0.00018777,2]
[378595377,1754921432505,-4656.54626331,0.000189,2]
[378595379,1754921432514,-2067.92352941,0.0001899,2]
[378595381,1754921432523,-11125.54673844,0.00019045,2]
[378595384,1754921432533,-1101.65034599,0.00019068,2]
[378595386,1754921432542,-517.27,0.00019068,3]
[378595388,1754921432551,-258.64,0.00019068,3]
[378595390,1754921432560,-775.92,0.00019068,3]
[378595392,1754921432569,-500.0,0.00019073,2]
[378595394,1754921432578,-516.7285694,0.00019073,2]
[378595396,1754921432587,-500.0,0.00019073,2]
[378595398,1754921432596,-500.0,0.00019073,2]
[378595400,1754921432605,-500.0,0.00019073,2]
[378595402,1754921432615,-500.0,0.00019073,2]
[378595404,1754921432625,-500.0,0.00019073,2]
[378595406,1754921432635,-500.0,0.00019073,2]
[378595408,1754921432643,-500.0,0.00019073,2]
[378595410,1754921432653,-500.0,0.00019073,2]
[378595411,1754921432663,-500.0,0.00019073,2]
[378595412,1754921432673,-500.0,0.00019073,2]
[378595414,1754921432683,-500.0,0.00019073,2]
[378595416,1754921432693,-500.0,0.00019073,2]
[378595418,1754921432703,-500.0,0.00019073,2]
[378595420,1754921432711,-500.0,0.00019073,2]
[378595421,1754921432721,-202.30528728,0.00019073,2]
[378595423,1754921432733,-297.69471272,0.00019073,2]
[378595425,1754921432743,-500.0,0.00019073,2]
[378595427,1754921432752,-500.0,0.00019073,2]
[378595429,1754921432761,-500.0,0.00019077,2]
[378595431,1754921432771,-63112.38916296,0.00019078,2]
[378595432,1754921432782,-42966.34906756,0.00019078,2]
[378595499,1754921435039,164.70161008,0.00018601,2]
[378595514,1754921438213,-500.0,0.00019075,2]
[378595515,1754921438223,-1279.99207557,0.00019075,2]
[378595516,1754921438442,-1279.99207557,0.00019075,2]
[378595517,1754921438451,-292.56562668,0.00019075,2]
[378595518,1754921438460,-1279.99207557,0.00019075,2]
[378595519,1754921438470,-1279.99207557,0.00019075,2]
[378595520,1754921438479,-1279.99207557,0.00019075,2]
[378595521,1754921438488,-1279.99207557,0.00019075,2]
[378595522,1754921438498,-1279.99207557,0.00019075,2]
[378595523,1754921438508,-1279.99207557,0.00019075,2]
[378595524,1754921438518,-1279.99207557,0.00019075,2]
[378595525,1754921438527,-1279.99207557,0.00019075,2]
[378595526,1754921438536,-1279.99207557,0.00019075,2]
[378595527,1754921438545,-1279.99207557,0.00019075,2]
[378595528,1754921438554,-1279.99207557,0.00019075,2]
[378595529,1754921438564,-1279.99207557,0.00019075,2]
[378595530,1754921438573,-263921.26176948,0.00019078,2]
[378595531,1754921438582,-335.0,0.00019109,2]
[378595532,1754921438591,-200.0,0.00019152,15]
[378595533,1754921438601,-200.0,0.00019152,15]
[378595534,1754921438610,-200.0,0.00019152,15]
[378595535,1754921438619,-200.0,0.00019152,15]
[378595536,1754921438629,-151.0,0.00019166,2]